Workbook

Sheet Sheet1
A1: 员 工 工 资 表
A2: 编号 | B2: 姓名 | C2: 底薪 | D2: 提成 | E2: 津贴 | F2: 违纪惩罚 | G2: 总工资 | H2: 所得税 | I2: 税后工资
A3: TZ65007 | B3: 罗韵琴 | C3: 2300 | D3: 5300 | E3: 350 | F3: -120 | G3: =SUM(C3:F3) -> 7830 | H3: =IF(G3-1600<0,0,IF(G3-1600<500,0.05*(G3-1600),IF(G3-1600<2000,0.1*(G3-1600)-25,IF(G3-1600<5000,0.15*(G3-1600)-125,IF(G3-1600<20000,0.2*(G3-1600)-375))))) -> 871 | I3: =G3-H3 -> 6959
A4: TZ65011 | B4: 杨军 | C4: 2100 | D4: 5100 | E4: 380 | F4: -100 | G4: =SUM(C4:F4) -> 7480 | H4: =IF(G4-1600<0,0,IF(G4-1600<500,0.05*(G4-1600),IF(G4-1600<2000,0.1*(G4-1600)-25,IF(G4-1600<5000,0.15*(G4-1600)-125,IF(G4-1600<20000,0.2*(G4-1600)-375))))) -> 801 | I4: =G4-H4 -> 6679
A5: TZ65006 | B5: 刘芳 | C5: 2500 | D5: 4900 | E5: 180 | F5: -160 | G5: =SUM(C5:F5) -> 7420 | H5: =IF(G5-1600<0,0,IF(G5-1600<500,0.05*(G5-1600),IF(G5-1600<2000,0.1*(G5-1600)-25,IF(G5-1600<5000,0.15*(G5-1600)-125,IF(G5-1600<20000,0.2*(G5-1600)-375))))) -> 789 | I5: =G5-H5 -> 6631
A6: TZ65010 | B6: 谢飞燕 | C6: 2200 | D6: 4500 | E6: 340 | G6: =SUM(C6:F6) -> 7040 | H6: =IF(G6-1600<0,0,IF(G6-1600<500,0.05*(G6-1600),IF(G6-1600<2000,0.1*(G6-1600)-25,IF(G6-1600<5000,0.15*(G6-1600)-125,IF(G6-1600<20000,0.2*(G6-1600)-375))))) -> 713 | I6: =G6-H6 -> 6327
A7: TZ65017 | B7: 张晓芸 | C7: 1500 | D7: 4300 | E7: 420 | G7: =SUM(C7:F7) -> 6220 | H7: =IF(G7-1600<0,0,IF(G7-1600<500,0.05*(G7-1600),IF(G7-1600<2000,0.1*(G7-1600)-25,IF(G7-1600<5000,0.15*(G7-1600)-125,IF(G7-1600<20000,0.2*(G7-1600)-375))))) -> 568 | I7: =G7-H7 -> 5652
A8: TZ65005 | B8: 林玉莲 | C8: 1700 | D8: 4100 | E8: 200 | F8: -80 | G8: =SUM(C8:F8) -> 5920 | H8: =IF(G8-1600<0,0,IF(G8-1600<500,0.05*(G8-1600),IF(G8-1600<2000,0.1*(G8-1600)-25,IF(G8-1600<5000,0.15*(G8-1600)-125,IF(G8-1600<20000,0.2*(G8-1600)-375))))) -> 523 | I8: =G8-H8 -> 5397
A9: TZ65008 | B9: 祁雪 | C9: 2300 | D9: 4000 | E9: 260 | F9: -50 | G9: =SUM(C9:F9) -> 6510 | H9: =IF(G9-1600<0,0,IF(G9-1600<500,0.05*(G9-1600),IF(G9-1600<2000,0.1*(G9-1600)-25,IF(G9-1600<5000,0.15*(G9-1600)-125,IF(G9-1600<20000,0.2*(G9-1600)-375))))) -> 611.5 | I9: =G9-H9 -> 5898.5
A10: TZ65013 | B10: 杨天成 | C10: 1800 | D10: 3900 | E10: 240 | G10: =SUM(C10:F10) -> 5940 | H10: =IF(G10-1600<0,0,IF(G10-1600<500,0.05*(G10-1600),IF(G10-1600<2000,0.1*(G10-1600)-25,IF(G10-1600<5000,0.15*(G10-1600)-125,IF(G10-1600<20000,0.2*(G10-1600)-375))))) -> 526 | I10: =G10-H10 -> 5414
A11: TZ65004 | B11: 李丽珊 | C11: 1400 | D11: 3800 | E11: 150 | G11: =SUM(C11:F11) -> 5350 | H11: =IF(G11-1600<0,0,IF(G11-1600<500,0.05*(G11-1600),IF(G11-1600<2000,0.1*(G11-1600)-25,IF(G11-1600<5000,0.15*(G11-1600)-125,IF(G11-1600<20000,0.2*(G11-1600)-375))))) -> 437.5 | I11: =G11-H11 -> 4912.5
A12: TZ65012 | B12: 杨丽 | C12: 1400 | D12: 3700 | E12: 230 | F12: -140 | G12: =SUM(C12:F12) -> 5190 | H12: =IF(G12-1600<0,0,IF(G12-1600<500,0.05*(G12-1600),IF(G12-1600<2000,0.1*(G12-1600)-25,IF(G12-1600<5000,0.15*(G12-1600)-125,IF(G12-1600<20000,0.2*(G12-1600)-375))))) -> 413.5 | I12: =G12-H12 -> 4776.5
A13: TZ65014 | B13: 张潮 | C13: 1500 | D13: 3500 | E13: 320 | G13: =SUM(C13:F13) -> 5320 | H13: =IF(G13-1600<0,0,IF(G13-1600<500,0.05*(G13-1600),IF(G13-1600<2000,0.1*(G13-1600)-25,IF(G13-1600<5000,0.15*(G13-1600)-125,IF(G13-1600<20000,0.2*(G13-1600)-375))))) -> 433 | I13: =G13-H13 -> 4887
A14: TZ65009 | B14: 王洁 | C14: 1500 | D14: 3300 | E14: 300 | G14: =SUM(C14:F14) -> 5100 | H14: =IF(G14-1600<0,0,IF(G14-1600<500,0.05*(G14-1600),IF(G14-1600<2000,0.1*(G14-1600)-25,IF(G14-1600<5000,0.15*(G14-1600)-125,IF(G14-1600<20000,0.2*(G14-1600)-375))))) -> 400 | I14: =G14-H14 -> 4700
A15: TZ65003 | B15: 黄成龙 | C15: 1300 | D15: 3000 | E15: 200 | F15: -220 | G15: =SUM(C15:F15) -> 4280 | H15: =IF(G15-1600<0,0,IF(G15-1600<500,0.05*(G15-1600),IF(G15-1600<2000,0.1*(G15-1600)-25,IF(G15-1600<5000,0.15*(G15-1600)-125,IF(G15-1600<20000,0.2*(G15-1600)-375))))) -> 277 | I15: =G15-H15 -> 4003
A16: TZ65001 | B16: 陈佳乐 | C16: 1400 | D16: 2800 | E16: 160 | F16: -50 | G16: =SUM(C16:F16) -> 4310 | H16: =IF(G16-1600<0,0,IF(G16-1600<500,0.05*(G16-1600),IF(G16-1600<2000,0.1*(G16-1600)-25,IF(G16-1600<5000,0.15*(G16-1600)-125,IF(G16-1600<20000,0.2*(G16-1600)-375))))) -> 281.5 | I16: =G16-H16 -> 4028.5
A17: TZ65002 | B17: 胡军 | C17: 1400 | D17: 0 | E17: 100 | G17: =SUM(C17:F17) -> 1500 | H17: =IF(G17-1600<0,0,IF(G17-1600<500,0.05*(G17-1600),IF(G17-1600<2000,0.1*(G17-1600)-25,IF(G17-1600<5000,0.15*(G17-1600)-125,IF(G17-1600<20000,0.2*(G17-1600)-375))))) -> 0 | I17: =G17-H17 -> 1500
A18: TZ65015 | B18: 张铁林 | C18: 1400 | D18: 0 | E18: 100 | G18: =SUM(C18:F18) -> 1500 | H18: =IF(G18-1600<0,0,IF(G18-1600<500,0.05*(G18-1600),IF(G18-1600<2000,0.1*(G18-1600)-25,IF(G18-1600<5000,0.15*(G18-1600)-125,IF(G18-1600<20000,0.2*(G18-1600)-375))))) -> 0 | I18: =G18-H18 -> 1500
A19: TZ65016 | B19: 张晓娜 | C19: 1000 | D19: 0 | E19: 100 | G19: =SUM(C19:F19) -> 1100 | H19: =IF(G19-1600<0,0,IF(G19-1600<500,0.05*(G19-1600),IF(G19-1600<2000,0.1*(G19-1600)-25,IF(G19-1600<5000,0.15*(G19-1600)-125,IF(G19-1600<20000,0.2*(G19-1600)-375))))) -> 0 | I19: =G19-H19 -> 1100

Sheet Sheet2

Sheet Sheet3
